fUSD/lending_fUSD_20251231
["ID","MTS","AMOUNT","RATE_DAILY","PERIOD"]
[400138716,1767147045075,-173.500349,0.000419,28]
[400138718,1767147045085,-173.500349,0.000419,28]
[400138720,1767147045095,-173.500349,0.000419,28]
[400138722,1767147045104,-159.972438,0.000419,120]
[400138724,1767147045114,-159.972438,0.000419,120]
[400138726,1767147045124,-157.54,0.00041902,120]
[400138728,1767147045133,-200.0,0.00041918,10]
[400138730,1767147045143,-151.0,0.0004199,14]
[400138732,1767147045152,-151.0,0.0004199,30]
[400138734,1767147045162,-178.986448,0.0004199,120]
[400138736,1767147045171,-120000.0,0.00042,30]
[400138738,1767147045180,-1000.0,0.00042,120]
[400138740,1767147045190,-1592.11614382,0.00042,120]
[400138742,1767147045199,-165.0,0.00042,120]
[400138744,1767147045208,-299.48,0.00042,120]
[400138746,1767147045217,-151.0,0.00042,120]
[400138748,1767147045227,-151.0,0.00042,120]
[400138750,1767147045236,-188.24766,0.00042,120]
[400138752,1767147045246,-151.0,0.00042,120]
[400138754,1767147045256,-151.0,0.00042,120]
[400138756,1767147045266,-288.699643,0.00042,120]
[400138758,1767147045275,-163.638723,0.00042,120]
[400138760,1767147045284,-163.638723,0.00042,120]
[400138762,1767147045294,-163.638723,0.00042,120]
[400138764,1767147045304,-163.638723,0.00042,120]
[400138766,1767147045314,-156.915545,0.00042,120]
[400138768,1767147045326,-156.915545,0.00042,120]
[400138770,1767147045337,-156.915545,0.00042,120]
[400138772,1767147045346,-156.915545,0.00042,120]
[400138774,1767147045356,-151.0,0.00042,120]
[400138776,1767147045367,-172.935637,0.00042,120]
[400138778,1767147045378,-151.0,0.00042,120]
[400138780,1767147045388,-151.0,0.00042,120]
[400138782,1767147045401,-151.0,0.00042,120]
[400138784,1767147045412,-230.077355,0.00042,120]
[400138786,1767147045422,-230.077355,0.00042,120]
[400138788,1767147045431,-230.077355,0.00042,120]
[400138790,1767147045441,-230.077355,0.00042,120]
[400138792,1767147045450,-682.58199793,0.0004202,60]
[400138794,1767147045460,-400.0,0.00042077,120]
[400138796,1767147045469,-446.13120245,0.00042077,120]
[400138798,1767147045478,-417.0,0.00042124,30]
[400138800,1767147045488,-2483.84,0.00042184,10]
[400138802,1767147045498,-10296.96,0.00042184,10]
[400138804,1767147045507,-999.0,0.00042191,120]
[400138806,1767147045516,-311.68557979,0.000423,28]
[400138808,1767147045526,-240.89,0.000423,120]
[400138810,1767147045535,-201.06834459,0.000423,2]
[400138813,1767147045545,-624.39510109,0.000423,2]
[400138817,1767147045555,-157.34602491,0.000423,8]
[400138821,1767147045564,-176.53903963,0.000423,2]
[400138823,1767147045574,-390.33953893,0.000424,31]
[400138825,1767147045583,-12473.56423309,0.000424,27]
[400138827,1767147045592,-150.0,0.000424,120]
[400138829,1767147045602,-5000000.0,0.000424,120]
[400138831,1767147045613,-5000000.0,0.000424,120]
[400138833,1767147045623,-4501284.57193867,0.000424,120]
[400138845,1767147045732,-159.972438,0.00038356,120]
[400138847,1767147045741,-4503.48081946,0.000424,120]
[400138850,1767147045753,-1774.97084956,0.000424,120]
[400138852,1767147045764,-355.967079,0.000424,120]
[400138888,1767147046095,-203.665783,0.00017,2]
[400138890,1767147046105,-203.665783,0.000248,7]
[400138892,1767147046115,-159.972438,0.00038356,120]
[400138894,1767147046125,-159.972438,0.00038356,120]
[400138896,1767147046135,-159.972438,0.000419,120]
[400138898,1767147046144,-159.972438,0.000419,120]
[400138900,1767147046154,-97.77868199,0.000419,120]
[400138902,1767147046166,-105.88710101,0.000419,120]
[400138904,1767147046176,-44243.69194368,0.000424,120]
[400138910,1767147046225,-151.0,0.00016304,2]
[400138913,1767147046235,-151.0,0.00016304,2]
[400138915,1767147046246,-203.665783,0.00017,2]
[400138917,1767147046256,-203.665783,0.000248,7]
[400138919,1767147046266,-120.85767605,0.000424,120]
[400138924,1767147046308,-203.665783,0.00017,2]
[400138926,1767147046318,-203.665783,0.000419,120]
[400138928,1767147046332,-590.223434,0.000424,120]
[400138931,1767147046345,-4462.33868109,0.000424,120]
[400138933,1767147046357,-306.94332034,0.000424,120]
[400138935,1767147046370,-3231.80490655,0.000424,120]
[400138938,1767147046381,-357.449822,0.000424,120]
[400138940,1767147046392,-1125.22801669,0.000424,120]
[400138942,1767147046406,-94088.53714788,0.000424,120]
[400138944,1767147046418,-2433.92932378,0.000424,120]
[400138947,1767147046430,-3286.62288674,0.000424,120]
[400138949,1767147046441,-413.51290273,0.000424,120]
[400138951,1767147046453,-364.5050974,0.000424,120]
[400138954,1767147046470,-337055.36415438,0.000424,120]
[400138956,1767147046480,-151.0,0.000424,120]
[400138958,1767147046491,-190.820604,0.000424,120]
[400138960,1767147046500,-151.0,0.000424,120]
[400138962,1767147046510,-151.0,0.000424,120]
[400138964,1767147046520,-151.0,0.000424,120]
[400138966,1767147046529,-169.430426,0.000424,120]
[400138968,1767147046539,-151.0,0.000424,120]
[400138970,1767147046548,-230.077355,0.000424,120]
[400138972,1767147046559,-230.077355,0.000424,120]
[400138974,1767147046568,-230.077355,0.000424,120]
[400138976,1767147046578,-230.077354,0.000424,120]
[400138978,1767147046587,-151.0,0.000424,120]
[400138980,1767147046596,-151.0,0.000424,120]
[400138982,1767147046606,-173.500349,0.000424,28]
[400138984,1767147046616,-173.500349,0.000424,28]
[400138986,1767147046626,-173.500349,0.000424,28]
[400138988,1767147046635,-173.500348,0.000424,28]
[400138990,1767147046646,-159.972438,0.000424,120]
[400138992,1767147046655,-159.972438,0.000424,120]
[400138994,1767147046665,-159.972438,0.000424,120]
[400138996,1767147046675,-159.972438,0.000424,120]
[400138998,1767147046685,-159.972438,0.000424,120]
[400139000,1767147046695,-159.972438,0.000424,120]
[400139002,1767147046704,-159.972438,0.000424,120]
[400139004,1767147046714,-159.972432,0.000424,120]
[400139006,1767147046724,-203.665783,0.000424,120]
[400139008,1767147046733,-203.665783,0.000424,120]
[400139010,1767147046742,-203.665783,0.000424,120]
[400139012,1767147046752,-203.665783,0.000424,120]
[400139014,1767147046761,-1279.08,0.00042484,90]
[400139016,1767147046771,-201.06834457,0.000425,2]
[400139018,1767147046781,-624.39510109,0.000425,2]
[400139020,1767147046791,-417.0,0.00042554,30]
[400139022,1767147046800,-292.66,0.000426,14]
[400139024,1767147046810,-326.765175,0.00042639,120]
[400139026,1767147046819,-326.765175,0.00042639,120]
[400139028,1767147046829,-326.765175,0.00042639,120]
[400139030,1767147046838,-326.765175,0.00042639,120]
[400139032,1767147046847,-201.06834457,0.000427,2]
[400139034,1767147046857,-624.39510109,0.000427,2]
[400139036,1767147046867,-176.53903962,0.000427,2]
[400139038,1767147046876,-214.233567,0.00042729,14]
[400139040,1767147046886,-153.42675,0.00042729,30]
[400139042,1767147046895,-170.8476635,0.00042739,60]
[400139044,1767147046905,-500.0,0.00042739,120]
[400139046,1767147046914,-500.0,0.00042739,120]
[400139048,1767147046924,-500.0,0.00042739,120]
[400139050,1767147046933,-410.15809895,0.00042739,120]
[400139052,1767147046942,-151.63376,0.00042739,120]
[400139054,1767147046952,-155.13001407,0.00042739,120]
[400139056,1767147046961,-500.0,0.00042739,120]
[400139058,1767147046970,-501.2485887,0.00042739,120]
[400139060,1767147046980,-500.0,0.00042739,120]
[400139062,1767147046994,-500.0,0.00042739,120]
[400139065,1767147047004,-500.0,0.00042739,120]
[400139067,1767147047015,-500.0,0.00042739,120]
[400139069,1767147047025,-500.0,0.00042739,120]
[400139071,1767147047036,-500.0,0.00042739,120]
[400139073,1767147047046,-179.95075113,0.00042739,120]
[400139075,1767147047055,-162.11607049,0.00042739,120]
[400139077,1767147047067,-173.63600297,0.00042739,120]
[400139079,1767147047077,-184.62560786,0.00042739,120]
[400139081,1767147047087,-204.19144267,0.00042739,120]
[400139083,1767147047098,-200.05365383,0.00042739,120]
[400139085,1767147047108,-153.23857374,0.00042739,120]
[400139087,1767147047117,-182.66966945,0.00042739,120]
[400139089,1767147047127,-526.42,0.00042739,120]
[400139092,1767147047137,-526.42,0.00042739,120]
[400139094,1767147047147,-526.42,0.00042739,120]
[400139096,1767147047158,-526.42,0.00042739,120]
[400139098,1767147047168,-526.42,0.00042739,120]
[400139100,1767147047178,-205.06256965,0.00042739,120]
[400139102,1767147047189,-511.60137501,0.00042739,120]
[400139104,1767147047198,-151.0987342,0.00042739,120]
[400139106,1767147047208,-202.4469487,0.00042739,120]
[400139108,1767147047218,-176.33653235,0.00042739,120]
[400139110,1767147047228,-184.48857863,0.00042739,120]
[400139112,1767147047238,-169.54263671,0.00042739,120]
[400139114,1767147047249,-157.7793187,0.00042739,60]
[400139116,1767147047259,-178.20330891,0.00042739,120]
[400139118,1767147047270,-203.61657598,0.00042739,120]
[400139121,1767147047281,-170.33038679,0.00042739,120]
[400139123,1767147047291,-187.96719861,0.00042739,120]
[400139125,1767147047301,-165.75340353,0.00042739,120]
[400139127,1767147047310,-159.07319514,0.00042739,120]
[400139129,1767147047321,-164.96077295,0.00042739,120]
[400139131,1767147047334,-170.19241691,0.00042739,120]
[400139133,1767147047343,-171.58872193,0.00042739,120]
[400139135,1767147047353,-500.0,0.00042739,120]
[400139137,1767147047367,-500.0,0.00042739,120]
[400139140,1767147047377,-500.0,0.00042739,120]
[400139142,1767147047387,-500.0,0.00042739,120]
[400139144,1767147047398,-456.7614029,0.00042739,120]
[400139146,1767147047408,-229.57343443,0.00042739,120]
[400139148,1767147047419,-270.42855253,0.00042739,120]
[400139150,1767147047430,-500.0,0.00042739,120]
[400139152,1767147047439,-500.0,0.00042739,120]
[400139154,1767147047449,-332.21862813,0.00042739,120]
[400139156,1767147047461,-238.27085771,0.00042739,120]
[400139158,1767147047471,-151.64149065,0.00042739,120]
[400139160,1767147047481,-215.17665878,0.00042739,120]
[400139162,1767147047491,-165.40382294,0.00042739,120]
[400139164,1767147047501,-160.58693833,0.00042739,120]
[400139166,1767147047511,-385.10113123,0.00042739,120]
[400139169,1767147047521,-165.13917047,0.00042739,120]
[400139171,1767147047531,-170.13661187,0.00042739,120]
[400139173,1767147047541,-236.92298741,0.00042739,120]
[400139175,1767147047550,-172.87678869,0.00042739,120]
[400139176,1767147047560,-276.81334862,0.00042739,120]
[400139177,1767147047570,-220.38040518,0.00042739,120]
[400139178,1767147047581,-500.0,0.00042739,120]
[400139179,1767147047591,-184.40079648,0.00042739,120]
[400139180,1767147047602,-299.60130251,0.00042739,120]
[400139181,1767147047612,-453.1076,0.00042739,120]
[400139182,1767147047622,-277.09724029,0.00042739,120]
[400139183,1767147047633,-184.62720856,0.00042739,120]
[400139184,1767147047643,-228.8689276,0.00042739,120]
[400139185,1767147047654,-181.80977822,0.00042739,120]
[400139187,1767147047664,-168.1507237,0.00042739,120]
[400139189,1767147047674,-165.25601258,0.00042739,120]
[400139191,1767147047685,-193.15974725,0.00042739,120]
[400139194,1767147047695,-228.75221512,0.00042739,120]
[400139196,1767147047705,-172.77378841,0.00042739,120]
[400139198,1767147047715,-182.86577305,0.00042739,120]
[400139200,1767147047729,-166.81813001,0.00042739,120]
[400139202,1767147047739,-228.17014304,0.00042739,120]
[400139204,1767147047749,-160.29684897,0.00042739,120]
[400139206,1767147047759,-217.37447329,0.00042739,120]
[400139209,1767147047770,-189.22090736,0.00042739,120]
[400139211,1767147047780,-253.01419079,0.00042739,120]
[400139213,1767147047790,-323.02367232,0.00042739,120]
[400139215,1767147047800,-500.0,0.00042739,120]
[400139217,1767147047811,-500.0,0.00042739,120]
[400139219,1767147047821,-500.0,0.00042739,120]
[400139221,1767147047831,-500.0,0.00042739,120]
[400139223,1767147047841,-500.0,0.00042739,120]
[400139225,1767147047850,-500.0,0.00042739,120]
[400139227,1767147047859,-500.0,0.00042739,120]
[400139229,1767147047870,-500.0,0.00042739,120]
[400139231,1767147047880,-500.0,0.00042739,120]
[400139233,1767147047890,-207.2684809,0.00042739,120]
[400139235,1767147047899,-193.16198052,0.00042739,120]
[400139237,1767147047909,-423.19972844,0.00042739,120]
[400139239,1767147047919,-500.0,0.00042739,120]
[400139242,1767147047934,-500.0,0.00042739,120]
[400139244,1767147047943,-628.7131221,0.00042739,120]
[400139246,1767147047953,-372.68976675,0.00042739,120]
[400139248,1767147047963,-186.1371733,0.00042739,120]
[400139250,1767147047973,-481.79657756,0.00042739,120]
[400139252,1767147047982,-176.29777805,0.00042739,120]
[400139254,1767147047992,-1645.32,0.00042739,120]
[400139256,1767147048002,-1645.32,0.00042739,120]
[400139258,1767147048012,-692.53239562,0.00042739,120]
[400139261,1767147048028,-292.08190972,0.00042739,120]
[400139263,1767147048039,-622.31759003,0.00042739,120]
[400139266,1767147048051,-38.38810463,0.00042739,120]
[400139268,1767147048061,-1645.32,0.00042739,120]
[400139270,1767147048072,-1645.32,0.00042739,120]
[400139272,1767147048082,-203.88699073,0.00042739,120]
[400139274,1767147048091,-1645.32,0.00042739,120]
[400139276,1767147048101,-1645.32,0.00042739,120]
[400139278,1767147048111,-1645.32,0.00042739,120]
[400139280,1767147048123,-1645.32,0.00042739,120]
[400139282,1767147048133,-500.0,0.00042739,120]
[400139284,1767147048143,-566.39272058,0.00042739,120]
[400139286,1767147048153,-500.0,0.00042739,120]
[400139288,1767147048163,-522.9925294,0.00042739,120]
[400139291,1767147048174,-154.01249874,0.00042739,120]
[400139293,1767147048185,-298.172494,0.00042739,120]
[400139295,1767147048195,-247.53819434,0.00042739,120]
[400139297,1767147048206,-302.95811266,0.00042739,120]
[400139299,1767147048215,-390.89473919,0.00042739,120]
[400139301,1767147048225,-391.09330773,0.00042739,120]
[400139303,1767147048235,-277.63991402,0.00042739,120]
[400139305,1767147048245,-157.37364739,0.00042739,120]
[400139307,1767147048255,-170.65266235,0.00042739,120]
[400139309,1767147048265,-189.35989186,0.00042739,120]
[400139311,1767147048275,-185.21831854,0.00042739,120]
[400139313,1767147048287,-231.87479277,0.00042739,120]
[400139315,1767147048296,-177.84543213,0.00042739,120]
[400139317,1767147048306,-304.17763922,0.00042739,120]
[400139319,1767147048316,-161.78757134,0.00042739,120]
[400139322,1767147048330,-167.07702243,0.00042739,120]
[400139324,1767147048340,-158.26400558,0.00042739,120]
[400139326,1767147048350,-215.8778892,0.00042739,120]
[400139328,1767147048360,-500.0,0.00042739,120]
[400139330,1767147048371,-500.0,0.00042739,120]
[400139332,1767147048380,-500.0,0.00042739,120]
[400139334,1767147048390,-500.0,0.00042739,120]
[400139336,1767147048401,-500.0,0.00042739,120]
[400139338,1767147048411,-245.46352259,0.00042739,120]
[400139340,1767147048422,-500.0,0.00042739,120]
[400139342,1767147048431,-500.0,0.00042739,120]
[400139344,1767147048441,-500.0,0.00042739,120]
[400139346,1767147048451,-500.0,0.00042739,120]
[400139348,1767147048462,-665.98,0.00042739,120]
[400139350,1767147048471,-150.00149953,0.00042739,60]
[400139352,1767147048481,-665.98,0.00042739,120]
[400139354,1767147048491,-665.98,0.00042739,120]
[400139356,1767147048501,-665.98,0.00042739,120]
[400139358,1767147048511,-665.98,0.00042739,120]
[400139361,1767147048533,-665.98,0.00042739,120]
[400139364,1767147048544,-289.53626881,0.00042739,120]
[400139366,1767147048554,-665.98,0.00042739,120]
[400139368,1767147048564,-1835.23,0.00042739,120]
[400139378,1767147048658,-1835.23,0.00042739,120]
[400139380,1767147048669,-665.98,0.00042739,120]
[400139382,1767147048679,-165.67839401,0.00042739,120]
[400139384,1767147048688,-1835.23,0.00042739,120]
[400139386,1767147048698,-665.98,0.00042739,120]
[400139388,1767147048707,-1835.23,0.00042739,120]
[400139390,1767147048717,-155.083692,0.00042739,120]
[400139392,1767147048727,-1835.23,0.00042739,120]
[400139394,1767147048737,-1835.23,0.00042739,120]
[400139397,1767147048747,-1835.23,0.00042739,120]
[400139399,1767147048756,-154.27760792,0.00042739,120]
[400139401,1767147048765,-1835.23,0.00042739,120]
[400139403,1767147048775,-1835.23,0.00042739,120]
[400139405,1767147048784,-834.7764753,0.00042739,120]
[400139407,1767147048798,-453.0,0.00042739,120]
[400139409,1767147048811,-547.4535247,0.00042739,120]
[400139412,1767147048820,-1339.77344635,0.00042739,120]
[400139414,1767147048837,-203.665783,0.000248,7]
[400139417,1767147048852,-495.45655365,0.00042739,120]
[400139419,1767147048861,-1835.23,0.00042739,120]
[400139421,1767147048871,-1835.23,0.00042739,120]
[400139423,1767147048880,-1835.23,0.00042739,120]
[400139425,1767147048890,-1835.23,0.00042739,120]
[400139427,1767147048900,-784.85942056,0.00042739,120]
[400139547,1767147317047,304.0908226,0.000301,120]
[400139607,1767147934116,3216.78009113,0.00013533,2]
[400139625,1767148091074,1000.0,0.000135,2]
[400139669,1767148231851,-284.57,0.00013699,2]
[400139671,1767148231862,-516.154,0.00015538,2]
[400139673,1767148231872,-279.0,0.00015538,2]
[400139675,1767148231882,-1861.18619309,0.00015754,2]
[400139677,1767148231958,-254.45,0.00015754,2]
[400139678,1767148231970,-49890.28061443,0.00015754,2]
[400139679,1767148232013,-1135.57030507,0.00015754,2]
[400139689,1767148237903,-247.60120005,0.00015753,2]
[400139690,1767148237913,-500.0,0.00015753,2]
[400139691,1767148237923,-168.96852404,0.00015753,2]
[400139692,1767148237933,-199.34918979,0.00015753,2]
[400139693,1767148237943,-194.26604256,0.00015753,2]
[400139694,1767148237952,-358.97801486,0.00015753,2]
[400139695,1767148237962,-263.22870966,0.00015753,2]
[400139696,1767148237971,-563.187534,0.00015753,2]
[400139697,1767148237981,-395.48017867,0.00015753,2]
[400139698,1767148237990,-563.187534,0.00015753,2]
[400139699,1767148238000,-563.187534,0.00015753,2]
[400139700,1767148238009,-563.187534,0.00015753,2]
[400139701,1767148238019,-563.187534,0.00015753,2]
[400139702,1767148238029,-563.187534,0.00015753,2]
[400139703,1767148238039,-563.187534,0.00015753,2]
[400139704,1767148238048,-563.187534,0.00015753,2]
[400139705,1767148238058,-563.187534,0.00015753,2]
[400139706,1767148238067,-563.187534,0.00015753,2]
[400139707,1767148238077,-563.187534,0.00015753,2]
[400139708,1767148238087,-563.187534,0.00015753,2]
[400139709,1767148238097,-563.187534,0.00015753,2]
[400139710,1767148238106,-563.187534,0.00015753,2]
[400139711,1767148238116,-563.187534,0.00015753,2]
[400139712,1767148238126,-563.187534,0.00015753,2]
[400139713,1767148238136,-563.187534,0.00015753,2]
[400139714,1767148238146,-563.187534,0.00015753,2]
[400139715,1767148238155,-563.187534,0.00015753,2]
[400139716,1767148238164,-563.187534,0.00015753,2]
[400139718,1767148238173,-500.0,0.00015753,2]
[400139720,1767148238183,-563.187534,0.00015753,2]
[400139722,1767148238192,-563.187534,0.00015753,2]
[400139723,1767148238201,-563.187534,0.00015753,2]
[400139726,1767148238211,-563.187534,0.00015753,2]
[400139728,1767148238220,-563.187534,0.00015753,2]
[400139730,1767148238230,-563.187534,0.00015753,2]
[400139732,1767148238240,-563.187534,0.00015753,2]
[400139733,1767148238249,-563.187534,0.00015753,2]
[400139736,1767148238259,-563.187534,0.00015753,2]
[400139738,1767148238268,-563.187534,0.00015753,2]
[400139740,1767148238278,-563.187534,0.00015753,2]
[400139742,1767148238288,-563.187534,0.00015753,2]
[400139744,1767148238297,-563.187534,0.00015753,2]
[400139746,1767148238306,-563.187534,0.00015753,2]
[400139748,1767148238315,-563.187534,0.00015753,2]
[400139750,1767148238325,-563.187534,0.00015753,2]
[400139752,1767148238334,-563.187534,0.00015753,2]
[400139754,1767148238344,-563.187534,0.00015753,2]
[400139756,1767148238353,-563.187534,0.00015753,2]
[400139758,1767148238363,-563.187534,0.00015753,2]
[400139760,1767148238372,-563.187534,0.00015753,2]
[400139762,1767148238382,-563.187534,0.00015753,2]
[400139764,1767148238391,-563.187534,0.00015753,2]
[400139766,1767148238401,-563.187534,0.00015753,2]
[400139768,1767148238410,-563.187534,0.00015753,2]
[400139770,1767148238421,-563.187534,0.00015753,2]
[400139772,1767148238431,-563.187534,0.00015753,2]
[400139774,1767148238440,-563.187534,0.00015753,2]
[400139776,1767148238450,-563.187534,0.00015753,2]
[400139778,1767148238459,-563.187534,0.00015753,2]
[400139780,1767148238469,-563.187534,0.00015753,2]
[400139782,1767148238478,-563.187534,0.00015753,2]
[400139784,1767148238488,-563.187534,0.00015753,2]
[400139786,1767148238497,-563.187534,0.00015753,2]
[400139788,1767148238507,-563.187534,0.00015753,2]
[400139790,1767148238516,-563.187534,0.00015753,2]
[400139792,1767148238526,-563.187534,0.00015753,2]
[400139794,1767148238535,-563.187534,0.00015753,2]
[400139796,1767148238546,-563.187534,0.00015753,2]
[400139798,1767148238557,-563.187534,0.00015753,2]
[400139800,1767148238566,-65797.09154756,0.00015754,2]
[400139802,1767148238579,-974.12080365,0.00015754,2]
[400139805,1767148238594,-342167.89826262,0.00015754,2]
[400140017,1767148240347,-160311.79671903,0.00015754,2]
[400140397,1767148243902,-9142.88966594,0.00015754,2]
[400140399,1767148243915,-316.47033406,0.00015754,2]
[400140585,1767148245921,-756.3,0.00015754,2]
[400140587,1767148245934,-1869.83992487,0.00015754,2]
[400140590,1767148245946,-362.84828034,0.00015754,2]
[400140593,1767148245976,-400.23705092,0.00015754,2]
[400140595,1767148245988,-803.6238,0.00015754,2]
[400140598,1767148246000,-727.39816523,0.00015754,2]
[400140602,1767148246036,-2824.18032499,0.00015754,2]
[400140609,1767148246096,-1141.6,0.00015754,2]
[400140620,1767148246260,-573.95549409,0.00015754,2]
[400140621,1767148246272,-440.415,0.00015754,2]
[400140653,1767148339351,-759.29646383,0.00015576,2]
[400140694,1767148489331,-448.49237684,0.00015522,2]
[400140695,1767148491971,-220.54331013,0.00015522,2]
[400140696,1767148494665,-190.43966131,0.00015522,2]
[400140697,1767148496691,-248.0,0.00015522,2]
[400140698,1767148498730,-307.07000795,0.00015522,2]
[400140699,1767148502107,-166.66,0.00015522,2]
[400140700,1767148528100,-1287.25331377,0.00015522,2]
[400140701,1767148528130,-1175.72159365,0.000156,2]
[400140702,1767148528160,-551.39896521,0.00015655,2]
[400140703,1767148528188,-266.88134432,0.00015655,2]
[400140704,1767148528216,-300.0,0.00015752,2]
[400140705,1767148528405,-300.0,0.00015752,2]
[400140706,1767148528438,-300.0,0.00015752,2]
[400140707,1767148528468,-437.4995661,0.00015752,2]
[400140708,1767148533984,-762.5004339,0.00015752,2]
[400140709,1767148534023,-500.0,0.00015753,2]
[400140710,1767148534061,-500.0,0.00015753,2]
[400140711,1767148534094,-500.0,0.00015753,2]
[400140712,1767148534128,-500.0,0.00015753,2]
[400140713,1767148534161,-500.0,0.00015753,2]
[400140714,1767148534194,-500.0,0.00015753,2]
[400140715,1767148534229,-500.0,0.00015753,2]
[400140716,1767148534263,-500.0,0.00015753,2]
[400140717,1767148537117,-531.4369,0.00015654,2]
[400140718,1767148537154,-500.0,0.00015753,2]
[400140719,1767148537190,-500.0,0.00015753,2]
[400140720,1767148537226,-500.0,0.00015753,2]
[400140721,1767148537262,-500.0,0.00015753,2]
[400140722,1767148537297,-500.0,0.00015753,2]
[400140723,1767148537333,-500.0,0.00015753,2]
[400140724,1767148537369,-500.0,0.00015753,2]
[400140725,1767148537403,-500.0,0.00015753,2]
[400140726,1767148537437,-437.1362,0.00015753,2]
[400140727,1767148611563,-169.02062467,0.00015351,2]
[400140799,1767149432037,-985.21312914,0.00015051,2]
[400140800,1767149432086,-514.78687086,0.00015051,2]
[400140801,1767149432101,-275.0,0.00015051,2]
[400140802,1767149432112,-233.85598455,0.0001507,2]
[400140803,1767149432122,-300.0,0.00015088,2]
[400140804,1767149432132,-432.17072571,0.00015126,2]
[400140805,1767149432142,-304.90495822,0.00015236,2]
[400140806,1767149432152,-435.36019309,0.000153,2]
[400140807,1767149432163,-55.30937533,0.00015351,2]
[400140808,1767149432173,-200.0,0.00015409,2]
[400140809,1767149432184,-300.0,0.00015543,2]
[400140810,1767149432194,-666.75190214,0.00015543,2]
[400140811,1767149432207,-533.24809786,0.00015543,2]
[400140812,1767149432216,-1463.85477888,0.00015544,2]
[400140813,1767149432229,-7855.28323193,0.00015544,2]
[400140814,1767149432246,-9582.01658919,0.00015544,2]
[400140815,1767149432256,-2072.38929267,0.00015544,2]
[400140816,1767149432269,-240.19320987,0.00015553,2]
[400140817,1767149432279,-175.2357013,0.00015553,2]
[400140818,1767149432289,-300.0,0.00015643,2]
[400140819,1767149432299,-300.0,0.00015643,2]
[400140820,1767149432309,-217.75732425,0.00015643,2]
[400140821,1767149432319,-500.0,0.00015643,2]
[400140822,1767149432329,-339.13336856,0.00015643,2]
[400140823,1767149432339,-374.22559894,0.00015643,2]
[400140824,1767149432348,-500.0,0.00015643,2]
[400140825,1767149432358,-171.17002172,0.00015643,2]
[400140826,1767149432368,-500.0,0.00015643,2]
[400140827,1767149432378,-500.0,0.00015643,2]
[400140828,1767149432388,-500.0,0.00015643,2]
[400140830,1767149432398,-500.0,0.00015643,2]
[400140832,1767149432407,-500.0,0.00015643,2]
[400140834,1767149432417,-380.44205064,0.00015643,2]
[400140836,1767149432427,-500.0,0.00015643,2]
[400140839,1767149432437,-500.0,0.00015643,2]
[400140841,1767149432447,-500.0,0.00015643,2]
[400140842,1767149432456,-500.0,0.00015643,2]
[400140843,1767149432470,-500.0,0.00015643,2]
[400140844,1767149432480,-500.0,0.00015643,2]
[400140845,1767149432490,-500.0,0.00015643,2]
[400140846,1767149432500,-500.0,0.00015643,2]
[400140848,1767149432511,-500.0,0.00015643,2]
[400140849,1767149432520,-500.0,0.00015643,2]
[400140850,1767149432531,-500.0,0.00015643,2]
[400140851,1767149432542,-500.0,0.00015643,2]
[400140852,1767149432552,-500.0,0.00015643,2]
[400140853,1767149432562,-500.0,0.00015643,2]
[400140854,1767149432573,-500.0,0.00015643,2]
[400140855,1767149432583,-500.0,0.00015643,2]
[400140856,1767149432594,-500.0,0.00015643,2]
[400140857,1767149432606,-500.0,0.00015643,2]
[400140858,1767149432616,-500.0,0.00015643,2]